bitfinex-derivatives/quotes_SOLF0:USTF0_20251024
["timestamp","ask_amount","ask_price","bid_price","bid_amount"]
[1761331652224,2.8,191.5,191.46,2.62]
[1761331652528,4.64002069,191.49,191.46,2.62]
[1761331652729,2.8,191.5,191.46,2.62]
[1761331653030,4.64002069,191.49,191.46,2.62]
[1761331653229,2.8,191.5,191.46,2.62]
[1761331653537,4.63980265,191.49,191.46,2.62]
[1761331653831,2.8,191.5,191.46,2.62]
[1761331654032,4.63980265,191.49,191.46,2.62]
[1761331654228,2.8,191.5,191.46,2.62]
[1761331654423,4.63960917,191.49,191.46,2.62]
[1761331654618,2.8,191.5,191.46,2.62]
[1761331654828,4.63960917,191.49,191.46,2.62]
[1761331655032,2.8,191.54,191.46,2.62]
[1761331655223,8.29300916,191.55,191.46,2.62]
[1761331655224,2.8,191.52,191.46,2.62]
[1761331655534,2.8,191.5,191.46,2.62]
[1761331655731,4.63967913,191.49,191.46,2.62]
[1761331655920,2.8,191.5,191.46,2.62]
[1761331656123,4.63959948,191.49,191.46,2.62]
[1761331656329,2.8,191.5,191.46,2.62]
[1761331656529,4.63953696,191.49,191.46,2.62]
[1761331656726,2.8,191.5,191.46,2.62]
[1761331656926,4.63953696,191.49,191.46,2.62]
[1761331657225,2.8,191.5,191.46,2.62]
[1761331657420,4.6395601,191.49,191.46,2.62]
[1761331657626,2.8,191.5,191.46,2.62]
[1761331657826,7.3595601,191.49,191.46,2.62]
[1761331658027,2.72,191.49,191.46,2.62]
[1761331658431,4.63967581,191.48,191.44,2.64]
[1761331658628,2.72,191.47,191.44,2.64]
[1761331660429,3.4099581,191.52,191.44,2.64]
[1761331660739,2.72,191.5,191.44,2.64]
[1761331660929,2.72,191.48,191.44,2.64]
[1761331662345,2.72,191.48,191.45,2.64]
[1761331664935,2.72,191.48,191.44,4.87957426]
[1761331665140,2.72,191.46,191.41,2.64]
[1761331665437,2.72,191.44,191.41,2.64]
[1761331666243,2.72,191.44,191.4,7.51957426]
[1761331666543,2.72,191.44,191.41,2.64]
[1761331667434,2.72,191.44,191.4,7.51957426]
[1761331667639,2.72,191.44,191.4,2.64]
[1761331668546,3.4099581,191.48,191.4,2.64]
[1761331668547,2.72,191.47,191.41,2.64]
[1761331668841,7.36100255,191.46,191.41,2.64]
[1761331669136,4.64100255,191.45,191.42,2.64]
[1761331669338,2.72,191.49,191.42,2.64]
[1761331669529,4.64197423,191.48,191.42,2.64]
[1761331669728,15.0,191.5,191.42,2.64]
[1761331669729,2.72,191.46,191.42,2.64]
[1761331669939,4.64197423,191.45,191.42,2.64]
[1761331670137,2.72,191.46,191.42,2.64]
[1761331670341,4.64189353,191.45,191.42,2.64]
[1761331670642,2.72,191.46,191.42,2.64]
[1761331670940,2.72,191.46,191.43,2.64]
[1761331673143,2.72,191.49,191.43,2.64]
[1761331673339,7.34470964,191.48,191.43,2.64]
[1761331673541,7.34470964,191.47,191.43,2.64]
[1761331673743,2.72,191.47,191.44,2.64]
[1761331674149,2.72,191.51,191.44,2.64]
[1761331674351,4.62465357,191.5,191.44,2.64]
[1761331674648,7.34465357,191.49,191.44,2.64]
[1761331674848,4.62465357,191.48,191.44,2.64]
[1761331675048,4.62465357,191.47,191.44,2.64]
[1761331675251,2.72,191.47,191.43,7.52353628]
[1761331675653,2.72,191.47,191.44,2.64]
[1761331675853,2.72,191.52,191.44,2.64]
[1761331676153,7.34488349,191.51,191.44,2.64]
[1761331676349,7.34488349,191.5,191.44,2.64]
[1761331676552,4.62488349,191.49,191.45,2.64]
[1761331676854,2.72,191.53,191.46,2.64]
[1761331677050,7.45465682,191.52,191.46,7.52353628]
[1761331677350,2.83,191.5,191.47,2.65]
[1761331682154,2.83,191.56,191.47,4.6997]
[1761331682454,4.62346572,191.55,191.53,2.65]
[1761331682650,2.83,191.59,191.53,2.65]
[1761331682953,2.83,191.57,191.53,2.65]
[1761331683143,4.62150522,191.56,191.53,2.65]
[1761331683344,2.83,191.6,191.54,2.65]
[1761331683550,2.83,191.58,191.54,2.65]
[1761331683740,4.61872019,191.57,191.54,2.65]
[1761331683954,2.83,191.58,191.54,2.65]
[1761331684150,4.61851774,191.57,191.55,2.65]
[1761331684351,2.83,191.58,191.56,2.65]
[1761331685757,2.83,191.58,191.54,7.348]
[1761331686056,2.83,191.58,191.55,2.65]
[1761331686556,2.83,191.58,191.52,6.8797832]
[1761331687349,15.0,191.62,191.49,2.1811832]
[1761331687350,2.83,191.55,191.49,2.1811832]
[1761331687555,2.72,191.53,191.48,182.77374594]
[1761331688148,2.72,191.53,191.49,2.86]
[1761331689152,2.72,191.53,191.48,180.12374594]
[1761331689354,19.88314798,191.6,191.48,180.12374594]
[1761331689355,2.72,191.51,191.48,180.12374594]
[1761331692659,7.3307959,191.51,191.48,180.12374594]
[1761331692956,2.72,191.5,191.48,180.12374594]
[1761331693154,2.72,191.51,191.48,182.98374594]
[1761331693458,2.72,191.51,191.48,180.12374594]
[1761331695355,2.72,191.51,191.48,182.98374594]
[1761331696161,2.72,191.51,191.48,180.12374594]
[1761331696457,2.72,191.51,191.48,182.98374594]
[1761331701262,2.72,191.51,191.48,180.12374594]
[1761331701460,2.72,191.5,191.45,2.86]
[1761331701767,2.72,191.48,191.43,2.86]
[1761331705358,4.59500389,191.49,191.43,2.86]
[1761331705564,2.72,191.48,191.45,2.86]
[1761331705764,7.31500389,191.5,191.45,2.86]
[1761331705958,2.72,191.49,191.45,2.86]
[1761331706163,7.31500389,191.5,191.47,2.86]
[1761331706362,2.72,191.5,191.47,2.86]
[1761331707369,4.59500389,191.52,191.47,2.86]
[1761331707671,4.59500389,191.51,191.49,2.86]
[1761331708158,7.31500389,191.53,191.49,2.86]
[1761331708361,4.59500389,191.52,191.49,2.86]
[1761331708562,7.31500389,191.52,191.49,2.86]
[1761331708767,2.72,191.52,191.49,2.86]
[1761331708967,7.31500389,191.52,191.49,2.86]
[1761331709169,2.72,191.52,191.49,2.86]
[1761331709370,7.31500389,191.52,191.49,2.86]
[1761331709567,2.72,191.52,191.49,2.86]
[1761331709768,7.31500389,191.52,191.49,2.86]
[1761331710065,2.72,191.52,191.49,2.86]
[1761331710262,7.31500389,191.52,191.49,2.86]
[1761331710463,2.72,191.52,191.49,2.86]
[1761331710665,7.31500389,191.52,191.49,2.86]
[1761331710866,2.72,191.52,191.49,2.86]
[1761331711067,7.31500389,191.52,191.49,2.86]
[1761331711267,2.72,191.52,191.49,2.86]
[1761331711466,7.31500389,191.52,191.49,2.86]
[1761331711667,4.59500389,191.53,191.51,2.86]
[1761331711864,7.31500389,191.54,191.52,2.1811832]
[1761331712068,4.59500389,191.53,191.52,5.0411832]
[1761331712366,4.59500389,191.56,191.53,2.86]
[1761331712567,7.31500389,191.58,191.55,2.1811832]
[1761331712871,4.59500389,191.57,191.55,2.1811832]
[1761331713071,2.72,191.58,191.55,2.1811832]
[1761331713263,4.59451728,191.57,191.55,2.1811832]
[1761331713459,2.72,191.58,191.55,5.0411832]
[1761331713870,2.72,191.56,191.52,2.1811832]
[1761331714071,7.31492831,191.55,191.52,2.1811832]
[1761331714373,4.59492831,191.54,191.52,2.1811832]
[1761331715472,2.72,191.55,191.52,2.1811832]
[1761331717172,4.59620891,191.54,191.52,2.1811832]
[1761331717868,2.72,191.55,191.52,2.1811832]
[1761331718070,2.72,191.55,191.49,186.35209245]
[1761331718271,2.72,191.53,191.49,189.03209245]
[1761331718574,2.72,191.55,191.51,2.68]
[1761331718772,7.31705147,191.54,191.51,2.68]
[1761331718968,2.72,191.54,191.51,2.68]
[1761331719277,2.72,191.54,191.5,2.1811832]
[1761331719666,2.72,191.54,191.49,186.35209245]
[1761331719871,2.72,191.52,191.49,186.35209245]
[1761331720173,2.72,191.52,191.49,189.03209245]
[1761331722173,2.72,191.53,191.5,2.68]
[1761331722374,7.31722199,191.53,191.5,2.68]
[1761331722571,2.72,191.53,191.5,2.68]
[1761331722771,7.31722199,191.53,191.5,2.68]
[1761331722972,2.72,191.53,191.5,2.68]
[1761331723179,7.31722199,191.53,191.5,2.68]
[1761331723379,2.72,191.53,191.5,2.68]
[1761331723572,7.31722199,191.53,191.5,2.68]
[1761331723765,2.72,191.53,191.49,186.35209245]
[1761331724078,2.72,191.52,191.49,189.03209245]
[1761331726080,2.72,191.52,191.5,2.68]
[1761331726979,2.72,191.52,191.49,186.35209245]
[1761331727277,2.72,191.52,191.49,189.03209245]
[1761331727668,2.72,191.52,191.49,186.35209245]
[1761331728070,4.59911791,191.51,191.49,186.35209245]
[1761331728274,2.72,191.52,191.49,186.35209245]
[1761331728477,4.59974851,191.51,191.49,189.03209245]
[1761331728683,2.72,191.52,191.49,189.03209245]
[1761331728878,4.59974851,191.51,191.49,189.03209245]
[1761331729078,2.72,191.52,191.49,189.03209245]
[1761331730274,2.1811832,191.55,191.49,186.35209245]
[1761331730479,2.72,191.53,191.5,2.68]
[1761331730677,4.60173124,191.52,191.5,2.68]
[1761331730878,2.72,191.53,191.5,2.68]
[1761331731073,2.72,191.55,191.5,2.68]
[1761331731283,7.32147835,191.54,191.5,2.68]
[1761331731479,4.60147835,191.53,191.5,2.68]
[1761331731681,2.72,191.54,191.5,2.68]
[1761331731880,4.60299568,191.53,191.5,2.68]
[1761331732075,15.0,191.56,191.5,2.68]
[1761331732281,7.32299568,191.55,191.5,2.68]
[1761331732481,4.60299568,191.54,191.5,2.68]
[1761331732785,4.60299568,191.53,191.5,2.68]
[1761331732986,2.72,191.55,191.5,2.68]
[1761331733287,4.60410593,191.54,191.5,2.68]
[1761331733487,4.60410593,191.53,191.5,2.68]
[1761331733683,2.72,191.55,191.5,2.68]
[1761331733893,4.60379635,191.54,191.5,2.68]
[1761331734090,15.0,191.56,191.5,2.68]
[1761331734290,4.60344008,191.55,191.5,2.68]
[1761331734593,15.0,191.56,191.5,2.68]
[1761331734788,4.60292923,191.55,191.5,2.68]
[1761331735091,2.72,191.58,191.51,2.68]
[1761331735287,4.60255452,191.57,191.51,2.68]
[1761331735482,7.32255452,191.56,191.51,2.68]
[1761331735683,4.60255452,191.55,191.51,2.68]
[1761331735883,2.72,191.56,191.51,2.68]
[1761331736098,7.32243617,191.55,191.51,2.68]
[1761331736297,4.60243617,191.54,191.51,2.68]
[1761331736606,2.72,191.55,191.51,2.68]
[1761331736794,4.60219171,191.54,191.51,2.68]
[1761331736999,2.81,191.58,191.51,2.68]
[1761331737200,4.60219171,191.57,191.51,2.68]
[1761331737500,4.60219171,191.56,191.51,2.68]
[1761331737698,4.60219171,191.55,191.52,2.88]
[1761331737906,2.81,191.56,191.52,2.88]
[1761331738203,4.60184336,191.55,191.52,2.88]
[1761331738399,2.81,191.56,191.52,2.88]
[1761331738603,4.60148211,191.55,191.52,2.88]
[1761331738904,2.81,191.56,191.52,2.88]
[1761331739106,4.60148211,191.55,191.52,2.88]
[1761331739407,2.81,191.56,191.52,2.88]
[1761331739606,4.60112115,191.55,191.52,2.88]
[1761331739808,2.81,191.56,191.52,2.88]
[1761331740007,4.60112115,191.55,191.52,2.88]
[1761331740212,2.81,191.55,191.52,2.88]
[1761331740408,2.81,191.53,191.49,191.41327565]
[1761331740606,2.81,191.53,191.5,2.88]
[1761331741008,15.0,191.58,191.5,2.88]
[1761331741203,4.60158342,191.57,191.5,2.88]
[1761331741402,7.41158342,191.56,191.5,2.88]
[1761331741602,4.60158342,191.55,191.5,2.88]
[1761331741804,4.60158342,191.54,191.5,2.88]
[1761331742007,4.60158342,191.53,191.5,2.88]
[1761331742302,2.81,191.56,191.51,2.88]
[1761331742507,7.41152261,191.55,191.52,2.88]
[1761331742706,4.60152261,191.54,191.52,2.88]
[1761331742911,2.81,191.55,191.52,2.88]
[1761331743210,4.60130837,191.54,191.52,2.88]
[1761331743410,2.81,191.55,191.52,2.88]
[1761331743611,4.60120219,191.54,191.52,2.88]
[1761331743806,15.0,191.58,191.52,2.88]
[1761331744013,2.81,191.56,191.52,2.88]
[1761331744316,4.60120219,191.55,191.52,2.88]
[1761331744510,2.81,191.56,191.52,2.88]
[1761331744708,7.41083615,191.55,191.52,2.88]
[1761331744908,2.81,191.55,191.52,2.88]
[1761331745315,7.41078366,191.54,191.52,2.88]
[1761331745516,2.81,191.54,191.52,2.88]
[1761331749115,2.63,191.57,191.52,2.88]
[1761331749311,7.23241381,191.56,191.52,2.88]
[1761331749516,7.23241381,191.55,191.52,2.88]
[1761331749716,4.60241381,191.54,191.52,2.88]
[1761331749912,2.63,191.55,191.52,2.88]
[1761331750119,4.60345028,191.54,191.52,2.88]
[1761331750315,2.63,191.55,191.52,2.88]
[1761331750515,4.60477436,191.54,191.52,2.88]
[1761331750716,2.63,191.55,191.52,2.88]
[1761331750917,4.60477436,191.54,191.52,2.88]
[1761331751115,2.63,191.57,191.52,2.88]
[1761331751317,7.23559459,191.56,191.52,2.88]
[1761331751519,4.60559459,191.55,191.52,2.88]
[1761331751718,4.60559459,191.54,191.52,2.88]
[1761331751914,2.63,191.56,191.52,2.88]
[1761331752217,4.60544995,191.55,191.52,2.88]
[1761331752418,4.60544995,191.54,191.52,2.88]
[1761331752612,2.63,191.56,191.52,2.88]
[1761331752808,4.60610813,191.55,191.52,2.88]
[1761331753010,4.60610813,191.54,191.52,2.88]
[1761331753207,2.63,191.56,191.52,2.88]
[1761331753416,4.60651831,191.55,191.52,2.88]
[1761331753607,4.60651831,191.54,191.52,2.88]
[1761331753815,2.63,191.56,191.52,2.88]
[1761331754118,7.23646331,191.55,191.52,2.88]
[1761331754418,4.60646331,191.54,191.52,2.88]
[1761331754717,4.60646331,191.53,191.52,2.88]
[1761331759626,2.63,191.58,191.52,2.88]
[1761331759922,2.63,191.56,191.52,2.88]
[1761331760123,7.23842911,191.55,191.52,2.88]
[1761331760323,4.60842911,191.54,191.52,2.88]
[1761331760524,2.63,191.55,191.52,2.88]
[1761331760825,4.6083204,191.54,191.52,2.88]
[1761331761035,2.63,191.59,191.52,2.88]
[1761331761230,7.24513031,191.58,191.52,2.88]
[1761331761420,4.61513031,191.57,191.52,2.88]
[1761331761723,7.24513031,191.56,191.52,2.88]
[1761331761923,4.61513031,191.55,191.52,2.88]
[1761331762124,4.61513031,191.54,191.52,2.88]
[1761331762320,2.63,191.56,191.52,2.88]
[1761331762521,4.61455483,191.55,191.52,2.88]
[1761331762723,4.61455483,191.54,191.52,2.88]
[1761331762925,2.63,191.56,191.52,2.88]
[1761331763117,4.61455483,191.55,191.52,2.88]
[1761331763323,4.61455483,191.54,191.52,2.88]
[1761331763522,2.63,191.55,191.52,2.88]
[1761331763820,4.61440281,191.54,191.52,2.88]
[1761331764026,2.63,191.55,191.52,2.88]
[1761331764227,4.61440281,191.54,191.52,2.88]
[1761331764526,2.63,191.55,191.52,2.88]
[1761331764827,4.61433975,191.54,191.52,2.88]
[1761331765026,2.63,191.55,191.52,2.88]
[1761331765223,4.61444733,191.54,191.52,2.88]
[1761331765425,2.63,191.55,191.52,2.88]
[1761331765723,4.61446923,191.54,191.52,2.88]
[1761331765926,2.63,191.55,191.52,2.88]
[1761331766122,4.61446923,191.54,191.51,3.40708101]
[1761331766327,4.61446923,191.53,191.52,2.75]
[1761331766624,2.63,191.58,191.52,2.75]
[1761331766819,2.63,191.56,191.52,2.75]
[1761331767022,7.24455839,191.55,191.52,2.75]
[1761331767224,4.61455839,191.54,191.52,2.75]
[1761331767419,2.63,191.59,191.52,2.75]
[1761331767624,2.63,191.57,191.52,2.75]
[1761331767930,2.63,191.55,191.54,3.40708101]
[1761331768130,7.24461052,191.55,191.54,3.40708101]
[1761331768332,2.63,191.54,191.52,2.75]
[1761331768632,4.61461052,191.53,191.52,2.75]
[1761331768830,4.61461052,191.53,191.51,69.21708101]
[1761331769030,2.63,191.53,191.51,69.21708101]
[1761331770832,4.8777832,191.59,191.51,69.21708101]
[1761331771028,2.63,191.57,191.51,69.21708101]
[1761331771233,2.63,191.55,191.51,69.21708101]
[1761331771435,7.24435535,191.54,191.51,69.21708101]
[1761331771634,4.61435535,191.53,191.51,69.21708101]
[1761331771836,2.63,191.54,191.51,69.21708101]
[1761331772036,4.61467235,191.53,191.51,69.21708101]
[1761331772238,2.63,191.54,191.51,69.21708101]
[1761331772537,4.61483424,191.53,191.51,69.21708101]
[1761331772836,2.63,191.54,191.51,69.21708101]
[1761331773037,2.63,191.54,191.52,2.75]
[1761331773038,4.61483424,191.53,191.52,2.75]
[1761331773933,4.61483424,191.53,191.51,2.75]
[1761331774127,2.63,191.55,191.51,2.75]
[1761331774327,4.61709823,191.54,191.51,2.75]
[1761331774530,4.61709823,191.53,191.51,2.75]
[1761331774731,2.63,191.55,191.51,2.75]
[1761331774928,7.24716504,191.54,191.51,2.75]
[1761331775232,4.61716504,191.53,191.51,2.75]
[1761331775428,2.63,191.54,191.51,2.75]
[1761331775733,4.61821249,191.53,191.51,2.75]
[1761331775935,2.63,191.54,191.51,2.75]
[1761331776134,4.61821249,191.53,191.52,2.75]
[1761331783243,4.61787157,191.53,191.52,2.75]
[1761331787646,2.86,191.55,191.53,2.62]
[1761331787845,4.61847207,191.54,191.53,2.62]
[1761331791147,2.86,191.58,191.54,2.62]
[1761331791348,4.57976208,191.57,191.55,2.62]
[1761331791646,2.86,191.58,191.55,2.62]
[1761331791647,4.57976208,191.56,191.55,2.62]
[1761331793351,2.86,191.58,191.55,2.62]
[1761331793648,4.57732793,191.57,191.55,2.62]
[1761331793846,2.86,191.58,191.55,2.62]
[1761331794047,7.43732793,191.57,191.55,2.62]
[1761331794245,7.43710145,191.56,191.53,7.48818488]
[1761331794434,2.86,191.56,191.54,2.62]
[1761331795647,2.86,191.56,191.53,2.62]
[1761331796642,2.86,191.56,191.53,7.48818488]
[1761331797350,2.86,191.56,191.53,2.62]
[1761331798349,2.62,191.61,191.53,2.62]
[1761331798552,2.62,191.59,191.53,2.62]
[1761331798747,2.62,191.57,191.53,2.62]
[1761331799054,7.19581991,191.56,191.53,2.62]
[1761331799256,2.62,191.56,191.53,2.62]
[1761331800855,2.62,191.56,191.55,2.17942732]
[1761331801054,7.19551471,191.56,191.55,2.17942732]
[1761331802458,7.19551471,191.56,191.54,2.17942732]
[1761331802653,2.62,191.56,191.54,2.17942732]
[1761331803558,2.62,191.56,191.54,4.89942732]
[1761331804258,2.62,191.56,191.54,2.17942732]
[1761331806860,2.62,191.56,191.54,4.89942732]
[1761331807369,2.76,191.54,191.52,2.17942732]
[1761331807673,2.76,191.6,191.52,5.04942732]
[1761331807871,2.76,191.58,191.52,5.04942732]
[1761331808070,2.76,191.56,191.52,5.04942732]
[1761331808270,7.33548404,191.55,191.53,2.87]
[1761331808472,2.76,191.55,191.52,5.04942732]
[1761331808869,2.76,191.55,191.53,5.04942732]
[1761331809264,2.76,191.58,191.54,2.87]
[1761331809571,15.0,191.6,191.58,2.87]
[1761331809872,2.76,191.63,191.6,2.87]
[1761331810071,2.76,191.66,191.58,67.92818488]
[1761331810270,2.76,191.64,191.61,2.17942732]
[1761331810465,7.33011871,191.63,191.61,2.17942732]
[1761331810668,2.76,191.63,191.61,2.17942732]
[1761331810868,2.76,191.67,191.61,2.17942732]
[1761331811077,2.76,191.65,191.61,5.04942732]
[1761331811374,7.33004132,191.64,191.61,5.04942732]
[1761331811575,4.57004132,191.63,191.61,5.04942732]
[1761331811772,4.57004132,191.63,191.61,2.17942732]
[1761331811773,2.76,191.63,191.61,2.17942732]
[1761331811972,2.76,191.61,191.55,4.86818488]
[1761331812172,2.76,191.59,191.54,2.17942732]
[1761331812478,4.56860305,191.58,191.55,2.87]
[1761331812673,2.76,191.61,191.56,2.17942732]
[1761331812972,7.32887249,191.6,191.57,2.87]
[1761331813178,2.76,191.58,191.56,2.17942732]
[1761331813474,2.76,191.58,191.54,5.04942732]
[1761331814378,2.76,191.58,191.54,2.87]
[1761331816075,2.76,191.61,191.54,2.17942732]
[1761331816276,2.76,191.59,191.55,2.87]
[1761331816580,2.76,191.57,191.49,191.22027733]
[1761331816875,2.76,191.55,191.49,189.22209245]
[1761331817080,4.56895316,191.54,191.5,2.17942732]
[1761331817269,2.76,191.55,191.5,2.17942732]
[1761331817476,2.76,191.53,191.5,5.04942732]
[1761331818279,7.33032685,191.56,191.5,2.17942732]
[1761331818482,2.76,191.54,191.5,5.04942732]
[1761331819578,2.76,191.54,191.49,186.35209245]
[1761331819775,2.76,191.54,191.49,189.22209245]
[1761331819970,2.17942732,191.56,191.49,189.22209245]
[1761331819971,7.33075652,191.53,191.49,189.22209245]
[1761331820174,2.76,191.53,191.49,189.22209245]
[1761331821280,7.25248113,191.56,191.5,5.04942732]
[1761331821477,2.76,191.54,191.5,5.04942732]
[1761331822575,2.76,191.53,191.49,186.35209245]
[1761331822776,2.76,191.51,191.46,2.17942732]
[1761331822981,2.76,191.51,191.47,2.87]
[1761331824174,2.76,191.52,191.47,2.87]
[1761331824371,2.76,191.51,191.47,2.87]
[1761331824576,2.76,191.51,191.46,5.04942732]
[1761331824787,2.76,191.51,191.48,2.17942732]
[1761331825185,2.76,191.51,191.48,5.04942732]
[1761331826283,2.76,191.51,191.48,2.17942732]
[1761331826484,2.76,191.51,191.48,5.04942732]
[1761331828783,2.76,191.53,191.49,2.87]
[1761331828979,2.76,191.53,191.51,2.17942732]
[1761331832192,2.76,191.53,191.48,2.87]
[1761331832390,2.76,191.53,191.51,2.17942732]
[1761331835189,2.76,191.53,191.49,2.17942732]
[1761331835890,2.76,191.53,191.47,2.17942732]
[1761331836195,2.76,191.52,191.47,2.17942732]
[1761331836397,2.76,191.51,191.47,2.17942732]
[1761331837695,2.76,191.51,191.47,4.97942732]
[1761331837898,2.76,191.51,191.48,2.8]
[1761331838196,17.63,191.53,191.5,2.8]
[1761331838391,17.63,191.53,191.51,2.17942732]
[1761331838597,2.63,191.53,191.51,2.17942732]
[1761331839794,2.63,191.55,191.52,2.8]
[1761331839999,2.63,191.55,191.51,2.17942732]
[1761331840498,2.63,191.55,191.49,2.17942732]
[1761331840801,2.63,191.53,191.49,2.17942732]
[1761331841110,2.63,191.53,191.5,2.8]
[1761331841396,2.63,191.53,191.49,4.97942732]
[1761331841596,2.63,191.53,191.49,2.17942732]
[1761331841987,2.63,191.53,191.49,4.97942732]
[1761331842902,7.1119783,191.53,191.49,4.97942732]
[1761331843397,2.63,191.53,191.49,4.97942732]
[1761331844899,2.63,191.53,191.49,2.8]
[1761331845201,2.63,191.53,191.49,2.17942732]
[1761331846194,2.63,191.53,191.49,4.97942732]
[1761331848802,2.63,191.53,191.49,2.8]
[1761331849701,2.63,191.52,191.49,2.8]
[1761331851400,7.11248268,191.53,191.49,2.8]
[1761331852502,2.63,191.52,191.49,2.8]
[1761331854901,2.63,191.52,191.44,159.1506607]
[1761331855203,2.63,191.52,191.47,2.8]
[1761331855406,2.63,191.52,191.48,2.17942732]
[1761331855704,2.63,191.52,191.48,4.97942732]
[1761331855907,2.63,191.52,191.49,2.8]
[1761331856111,2.63,191.51,191.48,2.17942732]
[1761331856708,2.63,191.51,191.48,4.97942732]
[1761331857104,7.12740729,191.51,191.48,4.97942732]
[1761331857313,2.63,191.51,191.48,4.97942732]
[1761331857809,7.12740729,191.51,191.48,4.97942732]
[1761331858013,2.63,191.51,191.48,4.97942732]
[1761331858712,2.63,191.51,191.48,2.8]
[1761331859115,4.50548609,191.5,191.48,2.8]
[1761331860219,2.63,191.51,191.48,2.8]
[1761331860416,4.50752086,191.5,191.48,2.8]
[1761331860717,2.63,191.51,191.48,2.8]
[1761331861016,7.19752087,191.5,191.48,2.8]
[1761331861221,2.69,191.48,191.44,156.3506607]
[1761331861414,2.69,191.53,191.46,2.75]
[1761331861616,4.51013015,191.52,191.46,2.75]
[1761331861812,4.51013015,191.51,191.46,2.75]
[1761331862013,4.51013015,191.5,191.46,2.75]
[1761331862320,2.69,191.51,191.46,2.75]
[1761331862513,7.20038301,191.5,191.46,2.75]
[1761331862717,4.51038301,191.49,191.45,2.75]
[1761331862918,2.69,191.51,191.45,2.75]
[1761331863114,7.20051956,191.5,191.45,2.75]
[1761331863318,4.51051956,191.49,191.45,2.75]
[1761331863519,2.69,191.5,191.45,2.75]
[1761331863720,4.51101814,191.49,191.45,2.75]
[1761331863920,2.69,191.5,191.45,2.75]
[1761331864120,4.51101814,191.49,191.45,2.75]
[1761331864424,2.69,191.5,191.45,2.75]
[1761331864626,4.51151513,191.49,191.45,2.75]
[1761331864817,2.69,191.5,191.45,2.75]
[1761331865018,4.51151513,191.49,191.45,2.75]
[1761331865217,2.69,191.5,191.45,2.75]
[1761331865424,4.5116065,191.49,191.45,2.75]
[1761331865625,2.69,191.5,191.45,2.75]
[1761331865923,4.5116065,191.49,191.45,2.75]
[1761331866218,2.69,191.5,191.45,2.75]
[1761331866424,17.69,191.54,191.47,2.75]
[1761331866624,4.51157621,191.53,191.47,2.75]
[1761331866922,4.51157621,191.52,191.47,2.75]
[1761331867222,4.51157621,191.51,191.47,2.75]
[1761331867424,17.69,191.54,191.47,2.75]
[1761331867619,7.15174422,191.53,191.47,7.61818488]
[1761331867823,4.51174422,191.52,191.48,2.62]
[1761331868022,4.51174422,191.51,191.48,2.62]
[1761331868223,19.8777832,191.57,191.49,2.62]
[1761331868425,4.51138933,191.56,191.49,2.62]
[1761331868620,4.51138933,191.55,191.5,2.62]
[1761331868822,4.51138933,191.54,191.51,2.62]
[1761331869015,2.64,191.58,191.5,4.86818488]